{"text_format":"1","workbook":"xlsx","n_sheets":1,"sheets":["Hoja1"],"not_rendered":{"charts":0,"images":0,"macros":1,"external_links":0,"defined_names":0,"comments":0,"pivot_tables":0},"unopened":[],"bounds":{"document_bytes":16777216,"sheet_cells":100000,"rows_first":2000,"rows_last":500,"rows_between":2000,"halvings":0,"cell_chars":16384,"cell_head_chars":4096},"cells_cut":0,"cells_raw":0,"read":"whole","date_system":"1900"}

{"sheet":"Hoja1","index":0,"n_rows":29,"n_cols":33,"rows_kept":29,"cut":false,"hidden":false,"merged":[[2,15,2,16],[2,27,2,28],[1,15,1,20],[0,13,0,20],[1,27,1,30],[2,29,2,30],[0,25,0,32],[1,3,1,4],[0,1,0,10],[2,3,2,4],[1,32,2,32],[1,31,2,31],[2,5,2,6],[2,7,2,8],[2,9,2,10],[2,19,2,20],[1,5,1,6],[1,7,1,8],[1,9,1,10],[1,1,2,2],[1,13,2,14],[1,25,2,26],[2,17,2,18]]}
[null,"COMPETENCIA DIXITAL - 5º PRIMARIA",null,null,null,null,null,null,null,null,null,null,null,"COMPETENCIA DIXITAL - 5º PRIMARIA",null,null,null,null,null,null,null,null,null,null,null,"COMPETENCIA DIXITAL - 5º PRIMARIA"]
[null,"5º A",null,"C. NATUREZA",null,"CIENCIAS SOCIAIS",null,"MÚSICA",null,"L- CASTELÁ",null,null,null,"5º A",null,"LINGUA GALEGA",null,null,null,null,null,null,null,null,null,"5º A",null,"INGLÉS",null,null,null,"NOTA MEDIA","CUALIFICACIÓN"]
[null,null,null,"5º-CNB1.1.1 - Busca, selecciona e organiza información concreta e relevante, analízaa, obtén conclusións, elabora informes e comunica os resultados en diferentes soportes.",null,"5º-CSB1.1.1 - Busca información (empregando as TIC e outras fontes directas e indirectas), selecciona a información relevante, a organiza, analiza, obtén conclusións sinxelas e as comunica oralmente e/ou por escrito.",null,"5º-EMB1.4.1 - Procura e selecciona a información de xeito autónomo e con sentido crítico.",null,"5º-LCB2.7.1 - Utiliza as Tecnoloxías da Información e Comunicación para a procura e tratamento guiado da información.",null,null,null,null,null,"5º-LGB2.5.1 - Utiliza as tecnoloxías da información para localizar e seleccionar a información nun texto sinxelo adecuado á súa idade.",null,"5º-LGB3.5.2 - Emprega procesadores de textos con certa autonomía.",null,"5º-LGB4.7.1 - Usa axeitadamente o dicionario en papel ou dixital para buscar calquera palabra, seleccionando a acepción precisa segundo cada contexto e como consulta ortográfica..",null,null,null,null,null,null,null,"5º-PLEB1.3 - Identifica a información máis relevante en interaccións orais nas que participa que traten sobre temas familiares procedentes de diferentes medios de comunicación e da Internet.",null,"5º-PLEB3.2 - Comprende a idea principal dun texto escrito sinxelo, con apoio visual, procedente dos medios de comunicación adaptados á súa competencia lingüística e acorde coa súa idade."]
[null,null,"ALUMNO /A","Nota",0.15,"Nota",0.15,"Nota",0.1,"Nota",0.1,null,null,null,"ALUMNO /A","Nota",0.1,"Nota",0.1,"Nota",0.1,null,null,null,null,null,"ALUMNO /A","Nota",0.1,"Nota",0.1,{"$f":"SUM(AE4,AC4,U4,S4,Q4,K4,I4,G4,E4)","v":1}]
[null,1,null,null,{"$f":"D5*0.15","v":0},null,{"$f":"F5*0.15","v":0},null,{"$f":"H5*0.1","v":0},null,{"$f":"J5*0.1","v":0},null,null,1,null,null,{"$f":"P5*0.1","v":0},null,{"$f":"R5*0.1","v":0},null,{"$f":"T5*0.1","v":0},null,null,null,null,1,null,null,{"$f":"AB5*0.1","v":0},null,{"$f":"AD5*0.1","v":0},{"$f":"SUM(AE5,AC5,U5,S5,Q5,K5,I5,G5,E5)","v":0},{"$f":"IF(AF5<5,\"INSUFICIENTE\",IF(AF5<6,\"SUFICIENTE\",IF(AF5<7,\"BIEN\",IF(AF5<9,\"NOTABLE\",\"SOBRESALIENTE\"))))","v":"INSUFICIENTE"}]
[null,2,null,null,{"$f":"D6*0.15","v":0},null,{"$f":"F6*0.15","v":0},null,{"$f":"H6*0.1","v":0},null,{"$f":"J6*0.1","v":0},null,null,2,null,null,{"$f":"P6*0.1","v":0},null,{"$f":"R6*0.1","v":0},null,{"$f":"T6*0.1","v":0},null,null,null,null,2,null,null,{"$f":"AB6*0.1","v":0},null,{"$f":"AD6*0.1","v":0},{"$f":"SUM(AE6,AC6,U6,S6,Q6,K6,I6,G6,E6)","v":0},{"$f":"IF(AF6<5,\"INSUFICIENTE\",IF(AF6<6,\"SUFICIENTE\",IF(AF6<7,\"BIEN\",IF(AF6<9,\"NOTABLE\",\"SOBRESALIENTE\"))))","v":"INSUFICIENTE"}]
[null,3,null,null,0,null,0,null,0,null,0,null,null,3,null,null,0,null,0,null,0,null,null,null,null,3,null,null,0,null,0,0,"INSUFICIENTE"]
[null,4,null,null,0,null,0,null,0,null,0,null,null,4,null,null,0,null,0,null,0,null,null,null,null,4,null,null,0,null,0,0,"INSUFICIENTE"]
[null,5,null,null,0,null,0,null,0,null,0,null,null,5,null,null,0,null,0,null,0,null,null,null,null,5,null,null,0,null,0,0,"INSUFICIENTE"]
[null,{"$f":"B9+1","v":6},null,null,0,null,0,null,0,null,0,null,null,{"$f":"N9+1","v":6},null,null,0,null,0,null,0,null,null,null,null,{"$f":"Z9+1","v":6},null,null,0,null,0,0,"INSUFICIENTE"]
[null,{"$f":"B10+1","v":7},null,null,0,null,0,null,0,null,0,null,null,{"$f":"N10+1","v":7},null,null,0,null,0,null,0,null,null,null,null,{"$f":"Z10+1","v":7},null,null,0,null,0,0,"INSUFICIENTE"]
[null,8,null,null,0,null,0,null,0,null,0,null,null,8,null,null,0,null,0,null,0,null,null,null,null,8,null,null,0,null,0,0,"INSUFICIENTE"]
[null,9,null,null,0,null,0,null,0,null,0,null,null,9,null,null,0,null,0,null,0,null,null,null,null,9,null,null,0,null,0,0,"INSUFICIENTE"]
[null,10,null,null,0,null,0,null,0,null,0,null,null,10,null,null,0,null,0,null,0,null,null,null,null,10,null,null,0,null,0,0,"INSUFICIENTE"]
[null,11,null,null,0,null,0,null,0,null,0,null,null,11,null,null,0,null,0,null,0,null,null,null,null,11,null,null,0,null,0,0,"INSUFICIENTE"]
[null,12,null,null,0,null,0,null,0,null,0,null,null,12,null,null,0,null,0,null,0,null,null,null,null,12,null,null,0,null,0,0,"INSUFICIENTE"]
[null,13,null,null,0,null,0,null,0,null,0,null,null,13,null,null,0,null,0,null,0,null,null,null,null,13,null,null,0,null,0,0,"INSUFICIENTE"]
[null,14,null,null,0,null,0,null,0,null,0,null,null,14,null,null,0,null,0,null,0,null,null,null,null,14,null,null,0,null,0,0,"INSUFICIENTE"]
[null,15,null,null,0,null,0,null,0,null,0,null,null,15,null,null,0,null,0,null,0,null,null,null,null,15,null,null,0,null,0,0,"INSUFICIENTE"]
[null,16,null,null,0,null,0,null,0,null,0,null,null,16,null,null,0,null,0,null,0,null,null,null,null,16,null,null,0,null,0,0,"INSUFICIENTE"]
[null,17,null,null,0,null,0,null,0,null,0,null,null,17,null,null,0,null,0,null,0,null,null,null,null,17,null,null,0,null,0,0,"INSUFICIENTE"]
[null,18,null,null,0,null,0,null,0,null,0,null,null,18,null,null,0,null,0,null,0,null,null,null,null,18,null,null,0,null,0,0,"INSUFICIENTE"]
[null,19,null,null,0,null,0,null,0,null,0,null,null,19,null,null,0,null,0,null,0,null,null,null,null,19,null,null,0,null,0,0,"INSUFICIENTE"]
[null,20,null,null,0,null,0,null,0,null,0,null,null,20,null,null,0,null,0,null,0,null,null,null,null,20,null,null,0,null,0,0,"INSUFICIENTE"]
[null,21,null,null,0,null,0,null,0,null,0,null,null,21,null,null,0,null,0,null,0,null,null,null,null,21,null,null,0,null,0,0,"INSUFICIENTE"]
[null,22,null,null,0,null,0,null,0,null,0,null,null,22,null,null,0,null,0,null,0,null,null,null,null,22,null,null,0,null,0,0,"INSUFICIENTE"]
[null,23,null,null,0,null,0,null,0,null,0,null,null,23,null,null,0,null,0,null,0,null,null,null,null,23,null,null,0,null,0,0,"INSUFICIENTE"]
[null,24,null,null,0,null,0,null,0,null,0,null,null,24,null,null,0,null,0,null,0,null,null,null,null,24,null,null,0,null,0,0,"INSUFICIENTE"]
[null,25,null,null,0,null,0,null,0,null,0,null,null,25,null,null,0,null,0,null,0,null,null,null,null,25,null,null,0,null,0,0,"INSUFICIENTE"]